lending/lending_fUSD_20241012
["ID","MTS","AMOUNT","RATE_DAILY","PERIOD"]
[340158859,1728706869177,-50000.0,0.00011,2]
[340158860,1728706870294,-620.0,0.00011,2]
[340158861,1728706870320,-49380.0,0.00011,2]
[340158862,1728706872696,-50000.0,0.00011,2]
[340158863,1728706881782,-560.0,0.00011,2]
[340158864,1728706881810,-23680.0,0.00011,2]
[340158867,1728707092443,327.76,8.606e-05,2]
[340158872,1728707289624,164.77,0.00010201,2]
[340158873,1728707292326,192.65,8.161e-05,2]
[340158876,1728707338588,10773.65420186,0.00010227,2]
[340158899,1728707383017,1593.3,0.00010154,2]
[340158901,1728707393903,250.0,0.00010154,2]
[340158918,1728707432311,-0.18333446,0.00010248,2]
[340158919,1728707432322,-412.95315396,0.00010248,2]
[340158920,1728707432337,-280.56667432,0.00010248,2]
[340158921,1728707432353,-396.66683726,0.00010248,2]
[340158922,1728707432362,-5564.8580858,0.00010296,2]
[340158923,1728707432373,-396.48017172,0.00010296,2]
[340158927,1728707438020,-1695.58212262,0.00010296,2]
[340158928,1728707438032,-2445.79999996,0.00010296,2]
[340158929,1728707438043,-13797.2796199,0.00010296,2]
[340158930,1728707438052,-2302.3682,0.00010327,2]
[340158931,1728707438062,-1852.42,0.0001034,2]
[340158932,1728707438072,-230.36453533,0.0001045,2]
[340158933,1728707438081,-157.18,0.00010461,2]
[340158934,1728707438091,-200.0,0.00010672,2]
[340158935,1728707438100,-500.0,0.00010673,2]
[340158936,1728707438110,-327.76,0.0001087,2]
[340158937,1728707438119,-12034.00870868,0.000109,2]
[340158938,1728707438131,-845.94537922,0.000109,2]
[340158939,1728707438142,-439.25,0.000109,2]
[340158940,1728707438187,-1001.1338569,0.000109,2]
[340158943,1728707439853,-1522.76578868,0.000109,2]
[340158944,1728707439864,-4315.77045909,0.000109,2]
[340158945,1728707439873,-224.77541145,0.000109,2]
[340158946,1728707439882,-186.35851032,0.000109,2]
[340158947,1728707439892,-1102.1337,0.000109,2]
[340158948,1728707439901,-631.80164734,0.000109,2]
[340158949,1728707439911,-169.16770408,0.000109,2]
[340158950,1728707439921,-156.01,0.00010959,2]
[340158951,1728707439930,-160.34,0.00010959,2]
[340158952,1728707439940,-500.0,0.00010973,2]
[340158953,1728707439949,-3435.6341011,0.00010994,2]
[340158954,1728707439959,-3215.9061595,0.00010994,2]
[340158955,1728707439968,-381.08578127,0.00010994,2]
[340158956,1728707439977,-583.82267994,0.00010997,2]
[340158957,1728707439986,-980.50255554,0.00010999,2]
[340158958,1728707439996,-500.0,0.00010999,2]
[340158959,1728707440005,-559.33121346,0.00010999,2]
[340158960,1728707440014,-239.20842987,0.00010999,2]
[340158961,1728707440024,-500.0,0.00011,2]
[340158962,1728707440034,-26696.56069884,0.00011,2]
[340158963,1728707440045,-2513.32445734,0.00011,2]
[340158964,1728707440077,-716.18160618,0.00011,2]
[340158965,1728707440088,-3441.38815,0.00011,2]
[340158966,1728707440099,-62703.68263699,0.00011,2]
[340158977,1728707442887,-9718.74312821,0.00011,2]
[340158978,1728707442902,-27508.08392612,0.00011,2]
[340158979,1728707443055,-50150.56003117,0.00011,2]
[340158980,1728707443072,-293.44999981,0.00011,2]
[340158981,1728707443083,-4750.00000002,0.00011,2]
[340158982,1728707443094,-946.0,0.00011,2]
[340158998,1728707445765,-95922.1815695,0.00011,2]
[340158999,1728707445876,-1552.725,0.00011,2]
[340159000,1728707445887,-3196.60124099,0.00011,2]
[340159001,1728707445940,-1221.7588,0.00011,2]
[340159005,1728707446380,-12013.76350537,0.00011,2]
[340159006,1728707446392,-7368.6299918,0.00011,2]
[340159024,1728707640475,343.64,8.255e-05,2]
[340159025,1728707677306,907.66,0.00010159,2]
[340159026,1728707740330,23900.0,0.00010159,2]
[340159027,1728707871653,1357.38,0.00010165,2]
[340159029,1728707911949,177.97,0.00010208,2]
[340159031,1728707945768,250.0,0.00010158,2]
[340159033,1728708059631,200.0,0.00010094,2]
[340159034,1728708267746,23900.0,0.00010025,2]
[340159036,1728708333134,349.96,8.219e-05,2]
[340159038,1728708342464,1000.0,0.00010002,2]
[340159039,1728708380738,160.93,0.00010054,2]
[340159141,1728708463875,250.0,0.00010097,2]
[340159142,1728708497923,151.03,0.00010137,2]
[340159186,1728708555509,250.0,0.00010194,2]
[340159255,1728708616411,1292.64,0.00010148,2]
[340159259,1728708631933,-156.66655344,0.00010419,2]
[340159260,1728708631943,-349.96,0.00010478,2]
[340159261,1728708631952,-75.76314703,0.0001054,2]
[340159262,1728708631963,-85.26685297,0.0001054,2]
[340159263,1728708631972,-1500.0,0.00010726,2]
[340159264,1728708631981,-2557.5376347,0.00010754,2]
[340159265,1728708631990,-150.0,0.00010754,2]
[340159266,1728708631999,-300.0,0.00010754,2]
[340159267,1728708632008,-4498.20551233,0.00010755,2]
[340159268,1728708632095,-5961.74819462,0.00010755,2]
[340159269,1728708632106,-16908.07270063,0.00010755,2]
[340159270,1728708632118,-504.3342,0.00010755,2]
[340159274,1728708638359,-38901.80947826,0.00010755,2]
[340159275,1728708638371,-1101.8235462,0.00010755,2]
[340159276,1728708639895,-337602.03295392,0.00010755,2]
[340159277,1728708639906,-10646.15710701,0.00010755,2]
[340159278,1728708639951,-1452.25846956,0.00010755,2]
[340159279,1728708640007,-9096.64373114,0.00010755,2]
[340159280,1728708640018,-8947.21879473,0.00010755,2]
[340159281,1728708640030,-8943.78386462,0.00010755,2]
[340159282,1728708640041,-9077.54866152,0.00010755,2]
[340159283,1728708640052,-8943.84023489,0.00010755,2]
[340159284,1728708640065,-1390.74255036,0.00010755,2]
[340159285,1728708640119,-120150.65000021,0.00010755,2]
[340159286,1728708640129,-5228.05,0.00010773,2]
[340159287,1728708640140,-642.28649013,0.00010773,2]
[340159288,1728708640150,-500.0,0.00010773,2]
[340159289,1728708640160,-500.0,0.00010773,2]
[340159290,1728708640170,-1476.56863813,0.00010828,2]
[340159291,1728708640179,-999.99,0.00010828,2]
[340159292,1728708640189,-9211.82,0.00010828,2]
[340159293,1728708640198,-299.99,0.00010828,2]
[340159294,1728708640207,-3925.57210475,0.00010899,2]
[340159295,1728708640217,-569.85,0.00010899,2]
[340159296,1728708640226,-4334.5387,0.000109,2]
[340159297,1728708640235,-2570.1968,0.000109,2]
[340159298,1728708640245,-169.16770408,0.000109,2]
[340159299,1728708640254,-326.15,0.000109,2]
[340159300,1728708640263,-1500.0,0.00010952,2]
[340159301,1728708640272,-167.44590091,0.00010958,2]
[340159302,1728708640281,-157.94,0.00010959,2]
[340159303,1728708640291,-285.9,0.00010959,2]
[340159304,1728708640301,-839.63,0.00010959,2]
[340159305,1728708640310,-1000.0,0.00010989,2]
[340159306,1728708640320,-1000.0,0.00010989,2]
[340159307,1728708640329,-1000.0,0.00010989,2]
[340159308,1728708640338,-1000.0,0.00010989,2]
[340159309,1728708640348,-1000.0,0.00010989,2]
[340159310,1728708640357,-885.5581,0.00010989,2]
[340159311,1728708640366,-1787.8303196,0.00010994,2]
[340159312,1728708640376,-23907.389375,0.00010994,2]
[340159313,1728708640385,-277.46823083,0.00010994,2]
[340159314,1728708640394,-564.0,0.00011,2]
[340159315,1728708640404,-31432.00763636,0.00011,2]
[340159316,1728708640416,-446.00496594,0.00011,2]
[340159317,1728708640428,-81285.12224999,0.00011,2]
[340159338,1728708643091,-301.25385499,0.00011,2]
[340159340,1728708643104,-2151.55353911,0.00011,2]
[340159345,1728708643145,-3057.54518817,0.00011,2]
[340159349,1728708643256,-2505.04274594,0.00011,2]
[340159354,1728708645967,-514.0,0.00011,2]
[340159355,1728708645977,-6737.1303635,0.00011,2]
[340159356,1728708645988,-31350.72951064,0.00011,2]
[340159357,1728708646022,-273.32622,0.00011,2]
[340159358,1728708646316,-22159.81174214,0.00011,2]
[340159359,1728708646335,-6222.99803238,0.00011,2]
[340159366,1728708913737,363.12,8.219e-05,2]
[340159367,1728708923185,200.0,9.891e-05,2]
[340159368,1728708973887,150.59,9.891e-05,2]
[340159369,1728708980773,23900.0,9.891e-05,2]
[340159370,1728708994400,250.0,9.891e-05,2]
[340159371,1728709061018,250.0,9.891e-05,2]
[340159372,1728709141822,1163.53,9.892e-05,2]
[340159373,1728709159714,436.03,9.892e-05,2]
[340159374,1728709159928,436.03,9.894e-05,2]
[340159375,1728709160348,436.03,9.897e-05,2]
[340159376,1728709160567,436.03,9.899e-05,2]
[340159377,1728709160796,436.03,9.902e-05,2]
[340159378,1728709161030,436.03,9.905e-05,2]
[340159379,1728709161251,436.03,9.907e-05,2]
[340159380,1728709161461,436.03,9.91e-05,2]
[340159381,1728709161655,436.03,9.912e-05,2]
[340159382,1728709161856,436.03,9.915e-05,2]
[340159383,1728709162063,436.03,9.918e-05,2]
[340159384,1728709162287,436.03,9.92e-05,2]
[340159385,1728709162489,436.03,9.923e-05,2]
[340159386,1728709162767,436.03,9.925e-05,2]
[340159387,1728709163050,436.03,9.928e-05,2]
[340159388,1728709163271,436.03,9.931e-05,2]
[340159389,1728709163484,436.03,9.933e-05,2]
[340159390,1728709163689,436.03,9.936e-05,2]
[340159391,1728709163896,436.03,9.938e-05,2]
[340159392,1728709164104,436.03,9.941e-05,2]
[340159393,1728709302473,404.0366,0.00010219,2]
[340159394,1728709431894,840.0,9.873e-05,2]
[340159395,1728709469263,23900.0,9.876e-05,2]
[340159396,1728709482941,160.93,9.873e-05,2]
[340159409,1728709562608,372.0,8.219e-05,2]
[340159486,1728709642025,840.36,9.877e-05,2]
[340159505,1728709650147,250.0,9.877e-05,2]
[340159527,1728709690313,-6290.8541,0.00010319,2]
[340159528,1728709690333,-334.51712849,0.00010325,2]
[340159529,1728709690353,-164.65,0.00010425,2]
[340159530,1728709690374,-372.0,0.0001047,2]
[340159531,1728709690394,-150.0,0.00010654,2]
[340159532,1728709690415,-56677.9248,0.00010655,2]
[340159533,1728709690435,-1097.7394,0.00010655,2]
[340159534,1728709690459,-150.0,0.00010728,2]
[340159535,1728709690481,-150.0,0.0001074,2]
[340159536,1728709690503,-150.0,0.00010743,2]
[340159537,1728709690523,-465.33978981,0.00010745,2]
[340159538,1728709690543,-150.99,0.00010745,2]
[340159539,1728709690563,-155.7046236,0.00010751,2]
[340159540,1728709690584,-150.0,0.00010763,2]
[340159541,1728709690606,-150.0,0.00010767,2]
[340159542,1728709690627,-150.0,0.00010768,2]
[340159543,1728709690648,-150.0,0.00010768,2]
[340159544,1728709690669,-150.0,0.00010779,2]
[340159545,1728709690691,-150.0,0.00010781,2]
[340159546,1728709690712,-150.0,0.00010784,2]
[340159547,1728709690733,-150.0,0.00010788,2]
[340159548,1728709690755,-150.0,0.00010794,2]
[340159549,1728709690778,-150.0,0.00010797,2]
[340159550,1728709690800,-150.0,0.00010805,2]
[340159551,1728709690822,-150.0,0.00010813,2]
[340159552,1728709690843,-150.0,0.00010813,2]
[340159553,1728709690863,-150.0,0.0001082,2]
[340159554,1728709690885,-150.0,0.00010821,2]
[340159555,1728709690907,-150.0,0.00010823,2]
[340159556,1728709690930,-150.0,0.00010832,2]
[340159557,1728709690952,-150.0,0.00010834,2]
[340159558,1728709690975,-150.0,0.00010838,2]
[340159559,1728709691004,-150.0,0.00010844,2]
[340159560,1728709691026,-174.24934109,0.00010853,2]
[340159561,1728709691048,-150.0,0.00010858,2]
[340159562,1728709691073,-150.0,0.00010859,2]
[340159563,1728709691094,-150.0,0.00010864,2]
[340159564,1728709691116,-150.0,0.00010872,2]
[340159565,1728709691138,-150.0,0.00010872,2]
[340159566,1728709691161,-150.0,0.00010878,2]
[340159567,1728709691183,-150.0,0.00010897,2]
[340159568,1728709691203,-3712.4026,0.000109,2]
[340159569,1728709691225,-1266.49505081,0.000109,2]
[340159570,1728709691245,-1266.49505081,0.000109,2]
[340159571,1728709691266,-306.82010161,0.000109,2]
[340159572,1728709691285,-1116.0346,0.000109,2]
[340159573,1728709691305,-421.20109822,0.000109,2]
[340159574,1728709691325,-150.0,0.00010902,2]
[340159575,1728709691346,-150.0,0.00010907,2]
[340159576,1728709691368,-150.0,0.00010917,2]
[340159577,1728709691389,-150.0,0.00010918,2]
[340159578,1728709691409,-1150.0,0.00010922,2]
[340159579,1728709691429,-13526.0,0.00010922,2]
[340159580,1728709691450,-1083.0,0.00010922,2]
[340159581,1728709691472,-150.0,0.00010923,2]
[340159582,1728709691492,-150.0,0.00010929,2]
[340159583,1728709691514,-150.0,0.00010929,2]
[340159584,1728709691535,-150.0,0.00010955,2]
[340159585,1728709691556,-157.08,0.00010959,2]
[340159586,1728709691577,-168.623,0.00010959,2]
[340159587,1728709691599,-150.0,0.00010963,2]
[340159588,1728709691619,-424.38888601,0.00010973,2]
[340159589,1728709691640,-500.0,0.00010973,2]
[340159590,1728709691662,-150.0,0.00010977,2]
[340159591,1728709691684,-150.0,0.00010978,2]
[340159592,1728709691705,-150.0,0.00010978,2]
[340159593,1728709691727,-150.0,0.00010986,2]
[340159594,1728709691749,-150.0,0.00010986,2]
[340159595,1728709691771,-150.0,0.00010987,2]
[340159596,1728709691792,-150.0,0.00010992,2]
[340159597,1728709691813,-535.0,0.00011,2]
[340159598,1728709691836,-273482.469198,0.00011,2]
[340159599,1728709691857,-275.0,0.00011,2]
[340159600,1728709691878,-500.0,0.00011,2]
[340159601,1728709691897,-780.0,0.00011,2]
[340159602,1728709691920,-1186819.82323385,0.00011,2]
[340159603,1728709691942,-728440.42455429,0.00011,2]
[340159604,1728709691964,-1020579.97186545,0.00011,2]
[340159605,1728709691984,-84736.48502535,0.00011,2]
[340159606,1728709692006,-1236555.95200773,0.00011,2]
[340159607,1728709692029,-785309.54719072,0.00011,2]
[340159608,1728709692051,-608248.15443266,0.00011,2]
[340159609,1728709692073,-150.0,0.00011,2]
[340159610,1728709692093,-153.281,0.00011,2]
[340159611,1728709692112,-150.0,0.00011,2]
[340159612,1728709692131,-264.788,0.00011,2]
[340159613,1728709692151,-150.0,0.00011,2]
[340159614,1728709692171,-150.089,0.00011,2]
[340159615,1728709692191,-300.3247032,0.00011,2]
[340159616,1728709692210,-2000.0,0.00011,2]
[340159617,1728709692231,-200.0,0.00011,2]
[340159618,1728709692251,-2000.0,0.00011,2]
[340159619,1728709692270,-200.0,0.00011,2]
[340159620,1728709692290,-629.427,0.00011,2]
[340159621,1728709692309,-812.0,0.00011,2]
[340159622,1728709692328,-449.0,0.00011,2]
[340159623,1728709692348,-155.548,0.00011,2]
[340159624,1728709692367,-1244.0,0.00011,2]
[340159625,1728709692387,-5882.0,0.00011,2]
[340159626,1728709692406,-150.0,0.00011,2]
[340159627,1728709692426,-560.0,0.00011,2]
[340159628,1728709692445,-935.0,0.00011,2]
[340159629,1728709692465,-1908.0,0.00011,2]
[340159630,1728709692494,-15111.7003692,0.00011,2]
[340159631,1728709692514,-3356.0,0.00011,2]
[340159632,1728709692534,-555.0,0.00011,2]
[340159633,1728709692554,-1910.0,0.00011,2]
[340159634,1728709692574,-808.0,0.00011,2]
[340159635,1728709692594,-884.1991199,0.00011,2]
[340159636,1728709692614,-200.0,0.00011,2]
[340159637,1728709692633,-681.0,0.00011,2]
[340159638,1728709698555,164.38861932,0.000109,2]
[340159641,1728709792079,156.01,0.00010959,2]
[340159642,1728709811956,150.0,0.00011,2]
[340159643,1728709814118,4588.0911,0.0001093,2]
[340159644,1728709815123,1150.0,0.00011,2]
[340159645,1728709820194,5882.0,0.00011,2]
[340159647,1728709824056,200.0,0.00010945,2]
[340159648,1728709824732,13526.0,0.00011,2]
[340159660,1728709832145,-2276.5127132,0.00011002,2]
[340159661,1728709832154,-38647.4026282,0.00011009,2]
[340159662,1728709832163,-2366.638081,0.00011009,2]
[340159663,1728709832172,-32966.66241215,0.00011024,2]
[340159664,1728709832200,-2126.95229904,0.00011024,2]
[340159665,1728709832257,-299.99,0.00011024,2]
[340159666,1728709832268,-901.0,0.00011024,2]
[340159667,1728709832315,-2203.60884502,0.00011024,2]
[340159668,1728709832373,-5478.78644379,0.00011024,2]
[340159669,1728709832382,-157.1244838,0.0001103,2]
[340159675,1728709838331,-560.50565751,0.0001103,2]
[340159676,1728709838440,-2100.89393893,0.0001103,2]
[340159699,1728709840169,-785.76315451,0.0001103,2]
[340159753,1728709976932,328.0,0.0001018,2]
[340159754,1728710038990,168.72,8.108e-05,2]
[340159755,1728710042666,171.47,0.0001013,2]
[340159756,1728710076892,23900.0,0.00010123,2]
[340159757,1728710166738,432.94,8.219e-05,2]
[340159758,1728710203696,200.13355578,8.178e-05,2]
[340159759,1728710223087,158.91,0.00010059,2]
[340159760,1728710228995,998.424348,0.000102,2]
[340159761,1728710254834,250.0,0.00010072,2]
[340159762,1728710329248,250.0,0.00010067,2]
[340159763,1728710359792,420.18,0.00010066,2]
[340159764,1728710371880,488.30751814,0.0001,2]
[340159765,1728710402424,150.0,0.0001,2]
[340159766,1728710402616,150.0,0.0001,2]
[340159767,1728710402792,150.0,0.0001,2]
[340159768,1728710403087,150.0,0.0001,2]
[340159769,1728710403277,250.60348319,0.0001,2]
[340159770,1728710567007,737.6,0.00010019,2]
[340159771,1728710608521,12369.76029303,0.00010031,2]
[340159772,1728710608550,5897.1746957,0.00010031,2]
[340159773,1728710608580,5633.06501127,0.00010031,2]
[340159774,1728710684354,150.0,8.219e-05,2]
[340159775,1728710684375,150.0,8.219e-05,2]
[340159776,1728710684396,139.03,8.219e-05,2]
[340159777,1728710770929,10.97,9.896e-05,2]
[340159778,1728710770950,150.0,9.896e-05,2]
[340159779,1728710770971,89.03,9.896e-05,2]
[340159780,1728710804525,86.40103448,9.981e-05,2]
[340159781,1728710804546,113.59896552,9.981e-05,2]
[340159782,1728710845639,900.0,0.000103,3]
[340159783,1728710847744,1800.0,0.000104,3]
[340159784,1728710849678,379.0,0.00021522,120]
[340159785,1728710849843,2800.0,0.000105,3]
[340159786,1728710851941,3700.0,0.000106,3]
[340159787,1728710854044,4700.0,0.000107,3]
[340159788,1728710856131,900.0,0.000108,3]
[340159789,1728710858297,900.0,0.000109,3]
[340159790,1728710860378,900.0,0.000119,4]
[340159791,1728710862480,84.64484446,9.894e-05,2]
[340159792,1728710862504,165.35515554,9.894e-05,2]
[340159793,1728710867754,210.09,9.894e-05,2]
[340159794,1728710877964,898.51984069,0.0001,2]
[340159859,1728710965778,225.56073912,0.00010152,2]
[340159861,1728711031603,2748.34163263,0.00010151,2]
[340159876,1728711032292,-300.0,0.00010251,2]
[340159878,1728711032302,-300.0,0.00010251,2]
[340159879,1728711032312,-323.0012,0.00010252,2]
[340159880,1728711032322,-7066.9988,0.00010252,2]
[340159881,1728711032352,-691.71636715,0.00010252,2]
[340159882,1728711032467,-345.0,0.00010252,2]
[340159883,1728711032479,-1401.64400542,0.00010252,2]
[340159884,1728711032527,-1863.15207544,0.00010252,2]
[340159889,1728711038533,-2389.0124591,0.00010252,2]
[340159892,1728711040276,-1037.83309289,0.00010252,2]
[340159893,1728711040285,-552.46279184,0.00010453,2]
[340159894,1728711040502,-4333.41882627,0.00010453,2]
[340159895,1728711040511,-489.11725063,0.00010453,2]
[340159896,1728711040523,-723.18940617,0.00010453,2]
[340159897,1728711040532,-426.77059383,0.00010477,2]
[340159898,1728711040560,-12.25940617,0.00010477,2]
[340159899,1728711040571,-150.0,0.00010755,2]
[340159900,1728711040580,-519.00548,0.00010755,2]
[340159906,1728711043519,-306.12138798,0.00010755,2]
[340159907,1728711043604,-0.00981784,0.00010755,2]
[340159908,1728711043615,-1124.84048428,0.00010755,2]
[340159909,1728711043624,-150.0,0.00010756,2]
[340159910,1728711043633,-150.0,0.00010768,2]
[340159911,1728711043642,-150.0,0.00010768,2]
[340159912,1728711043651,-150.0,0.00010772,2]
[340159913,1728711043660,-150.0,0.00010777,2]
[340159914,1728711043669,-104.34139646,0.0001078,2]
[340159915,1728711043681,-45.65860354,0.0001078,2]
[340159916,1728711043689,-178.5,0.0001078,2]
[340159917,1728711043698,-35.32948786,0.00010787,2]
[340159918,1728711043709,-114.67051214,0.00010787,2]
[340159919,1728711043719,-150.0,0.0001079,2]
[340159920,1728711043728,-150.0,0.0001079,2]
[340159921,1728711043737,-1500.0,0.00010793,2]
[340159922,1728711043746,-1516.36511129,0.00010794,2]
[340159923,1728711043755,-150.0,0.00010796,2]
[340159924,1728711043764,-150.0,0.00010799,2]
[340159925,1728711043773,-150.0,0.00010806,2]
[340159926,1728711043782,-150.0,0.00010811,2]
[340159927,1728711043791,-150.0,0.00010817,2]
[340159928,1728711043799,-150.0,0.00010826,2]
[340159929,1728711043809,-150.0,0.00010832,2]
[340159930,1728711043819,-150.0,0.00010833,2]
[340159931,1728711043828,-699.02264972,0.00010834,2]
[340159932,1728711043838,-150.0,0.00010838,2]
[340159933,1728711043847,-150.0,0.00010848,2]
[340159934,1728711043857,-150.0,0.0001085,2]
[340159935,1728711043867,-150.0,0.00010856,2]
[340159936,1728711043876,-1882.116,0.00010856,2]
[340159938,1728711043885,-150.0,0.00010861,2]
[340159939,1728711043894,-18.83593412,0.00010865,2]
[340159941,1728711043906,-131.16406588,0.00010865,2]
[340159942,1728711043915,-150.0,0.00010872,2]
[340159943,1728711043924,-14.69593448,0.00010874,2]
[340159944,1728711043935,-135.30406552,0.00010874,2]
[340159946,1728711043945,-150.0,0.00010879,2]
[340159947,1728711043954,-150.0,0.00010879,2]
[340159948,1728711043963,-150.0,0.0001088,2]
[340159949,1728711043972,-150.0,0.00010886,2]
[340159950,1728711043982,-150.0,0.0001089,2]
[340159951,1728711043992,-150.0,0.00010891,2]
[340159952,1728711044002,-150.0,0.00010892,2]
[340159953,1728711044012,-1500.0,0.00010892,2]
[340159954,1728711044021,-150.0,0.00010894,2]
[340159955,1728711044031,-150.0,0.00010897,2]
[340159956,1728711044040,-5496.7197,0.000109,2]
[340159957,1728711044050,-322.42715141,0.000109,2]
[340159958,1728711044059,-2500.0,0.000109,2]
[340159959,1728711044069,-1127.16423299,0.000109,2]
[340159960,1728711044082,-2523.91437041,0.000109,2]
[340159961,1728711044093,-8958.77547968,0.000109,2]
[340159962,1728711044103,-4300.83809053,0.000109,2]
[340159963,1728711044111,-2937.93208021,0.000109,2]
[340159965,1728711046394,-713.14652315,0.000109,2]
[340159966,1728711046404,-3651.07860336,0.000109,2]
[340159967,1728711046413,-3651.07860336,0.00010901,2]
[340159968,1728711046422,-3651.07860336,0.00010901,2]
[340159969,1728711046431,-3651.07860336,0.00010901,2]
[340159970,1728711046440,-3651.07860336,0.00010901,2]
[340159971,1728711046449,-3651.07860336,0.00010902,2]
[340159972,1728711046459,-3651.07860336,0.00010902,2]
[340159973,1728711046475,-3651.07860336,0.00010902,2]
[340159974,1728711046488,-150.0,0.00010913,2]
[340159975,1728711046498,-150.0,0.00010913,2]
[340159976,1728711046508,-150.0,0.00010915,2]
[340159977,1728711046518,-150.0,0.00010916,2]
[340159978,1728711046527,-150.0,0.00010919,2]
[340159979,1728711046538,-150.0,0.00010932,2]
[340159980,1728711046547,-150.0,0.00010939,2]
[340159981,1728711046557,-500.0,0.00010942,2]
[340159982,1728711046567,-150.0,0.00010942,2]
[340159983,1728711046577,-150.0,0.00010944,2]
[340159984,1728711046586,-150.0,0.00010946,2]
[340159985,1728711046596,-150.0,0.00010948,2]
[340159986,1728711046605,-150.0,0.00010954,2]
[340159987,1728711046615,-150.0,0.00010956,2]
[340159988,1728711046624,-150.0,0.00010958,2]
[340159989,1728711046633,-403.34,0.00010959,2]
[340159990,1728711046642,-150.24,0.00010959,2]
[340159991,1728711046651,-150.0,0.00010959,2]
[340159992,1728711046662,-157.94,0.00010959,2]
[340159993,1728711046672,-200.0,0.00010959,2]
[340159994,1728711046681,-177.681,0.00010959,2]
[340159995,1728711046691,-150.0,0.00010966,2]
[340159996,1728711046702,-150.0,0.00010969,2]
[340159997,1728711046712,-150.0,0.00010971,2]
[340159998,1728711046724,-502.32754862,0.00010973,2]
[340159999,1728711046734,-500.0,0.00010973,2]
[340160000,1728711046743,-500.0,0.00010973,2]
[340160001,1728711046754,-150.0,0.00010978,2]
[340160002,1728711046764,-150.0,0.00010986,2]
[340160003,1728711046775,-164.57,0.00010999,2]
[340160004,1728711046784,-201.21416177,0.00010999,2]
[340160005,1728711046793,-500.0,0.00010999,2]
[340160006,1728711046804,-500.0,0.00010999,2]
[340160007,1728711046813,-439.27274489,0.00010999,2]
[340160008,1728711046822,-333.88,0.00011,2]
[340160009,1728711046832,-234798.42220435,0.00011,2]
[340160010,1728711046844,-12181.45042317,0.00011,2]
[340160011,1728711046855,-282.58601024,0.00011,2]
[340160012,1728711046870,-250.10479714,0.00011,2]
[340160013,1728711046882,-5008.17589993,0.00011,2]
[340160014,1728711046892,-3071702.885875,0.00011,2]
[340160025,1728711140565,150.0,0.00010152,2]
[340160026,1728711140588,4339.2238,0.00010152,2]
[340160029,1728711260206,395.12,8.575e-05,2]
[340160032,1728711318135,250.0,0.00010218,2]
[340160034,1728711367942,250.0,0.00010232,2]
[340160035,1728711387460,210.09,0.00010207,2]
[340160036,1728711491238,-187.99,0.00010241,2]
[340160037,1728711491261,-200.0,0.00010511,2]
[340160038,1728711491285,-409.92,0.00010517,2]
[340160039,1728711491308,-300.0,0.00010534,2]
[340160040,1728711491330,-23900.0,0.00010535,2]
[340160041,1728711491353,-1066.97237905,0.0001078,2]
[340160042,1728711491376,-395.12,0.00010839,2]
[340160043,1728711491398,-150.0,0.00010899,2]
[340160044,1728711491419,-10314.2011,0.000109,2]
[340160045,1728711491440,-1622.1573,0.000109,2]
[340160046,1728711491462,-1000.0,0.000109,2]
[340160047,1728711491484,-4888.0911,0.000109,2]